{"text_format":"3","workbook":"xlsx","n_sheets":2,"sheets":["Budgetoversigt","Budgetoplysninger"],"not_rendered":{"images":1,"defined_names":1},"read":"whole","date_system":"1900"}

{"sheet":"Budgetoversigt","index":0,"n_rows":28,"n_cols":7,"rows_kept":28}
[{"$nulls":6}," "]
[]
[null,"SAMLET BRYLLUPSBUDGET",{"v":20000,"d":"kr. 20,000"}]
[]
[null,"UDGIFTER","Allokering \n%","Allokeret budget","Anslået \nOmkostninger","Faktisk \nOmkostninger"]
[null,"Reception",{"v":0.5,"d":"50%"},{"$f":"Samlet_Bryllupsbudget*Budgetoversigt!$C6","v":{"v":10000,"d":"kr. 10,000"}},{"$f":"Table_Reception[[#Totals],[Anslåede omkostninger]]","v":{"v":0,"d":"kr. 0"}},{"$f":"Table_Reception[[#Totals],[Faktiske omkostninger]]","v":{"v":0,"d":"kr. 0"}}]
[null,"Påklædning",{"v":0.1,"d":"10%"},{"$f":"Samlet_Bryllupsbudget*Budgetoversigt!$C7","v":{"v":2000,"d":"kr. 2,000"}},{"$f":"Table_Attire[[#Totals],[Anslåede omkostninger]]","v":{"v":0,"d":"kr. 0"}},{"$f":"Table_Attire[[#Totals],[Faktiske omkostninger]]","v":{"v":0,"d":"kr. 0"}}]
[null,"Blomster og pynt",{"v":0.1,"d":"10%"},{"$f":"Samlet_Bryllupsbudget*Budgetoversigt!$C8","v":{"v":2000,"d":"kr. 2,000"}},{"$f":"Table_FlowersAndDecorations[[#Totals],[Anslåede omkostninger]]","v":{"v":0,"d":"kr. 0"}},{"$f":"Table_FlowersAndDecorations[[#Totals],[Faktiske omkostninger]]","v":{"v":0,"d":"kr. 0"}}]
[null,"Musik",{"v":0.1,"d":"10%"},{"$f":"Samlet_Bryllupsbudget*Budgetoversigt!$C9","v":{"v":2000,"d":"kr. 2,000"}},{"$f":"Table_Music[[#Totals],[Anslåede omkostninger]]","v":{"v":0,"d":"kr. 0"}},{"$f":"Table_Music[[#Totals],[Faktiske omkostninger]]","v":{"v":0,"d":"kr. 0"}}]
[null,"Fotos og videoer",{"v":0.1,"d":"10%"},{"$f":"Samlet_Bryllupsbudget*Budgetoversigt!$C10","v":{"v":2000,"d":"kr. 2,000"}},{"$f":"Table_PhotographsAndVideo[[#Totals],[Anslåede omkostninger]]","v":{"v":0,"d":"kr. 0"}},{"$f":"Table_PhotographsAndVideo[[#Totals],[Faktiske omkostninger]]","v":{"v":0,"d":"kr. 0"}}]
[null,"Gaver til gæster",{"v":0.03,"d":"3%"},{"$f":"Samlet_Bryllupsbudget*Budgetoversigt!$C11","v":{"v":600,"d":"kr. 600"}},{"$f":"Table_FavorsAndGifts[[#Totals],[Anslåede omkostninger]]","v":{"v":0,"d":"kr. 0"}},{"$f":"Table_FavorsAndGifts[[#Totals],[Faktiske omkostninger]]","v":{"v":0,"d":"kr. 0"}}]
[null,"Ceremoni",{"v":0.02,"d":"2%"},{"$f":"Samlet_Bryllupsbudget*Budgetoversigt!$C12","v":{"v":400,"d":"kr. 400"}},{"$f":"Table_Ceremony[[#Totals],[Anslåede omkostninger]]","v":{"v":0,"d":"kr. 0"}},{"$f":"Table_Ceremony[[#Totals],[Faktiske omkostninger]]","v":{"v":0,"d":"kr. 0"}}]
[null,"Tryksager",{"v":0.02,"d":"2%"},{"$f":"Samlet_Bryllupsbudget*Budgetoversigt!$C13","v":{"v":400,"d":"kr. 400"}},{"$f":"Table_Stationery[[#Totals],[Anslåede omkostninger]]","v":{"v":0,"d":"kr. 0"}},{"$f":"Table_Stationery[[#Totals],[Faktiske omkostninger]]","v":{"v":0,"d":"kr. 0"}}]
[null,"Vielsesringe",{"v":0.02,"d":"2%"},{"$f":"Samlet_Bryllupsbudget*Budgetoversigt!$C14","v":{"v":400,"d":"kr. 400"}},{"$f":"Table_WeddingRings[[#Totals],[Anslåede omkostninger]]","v":{"v":0,"d":"kr. 0"}},{"$f":"Table_WeddingRings[[#Totals],[Faktiske omkostninger]]","v":{"v":0,"d":"kr. 0"}}]
[null,"Transport",{"v":0.01,"d":"1%"},{"$f":"Samlet_Bryllupsbudget*Budgetoversigt!$C15","v":{"v":200,"d":"kr. 200"}},{"$f":"Table_Transportation[[#Totals],[Anslåede omkostninger]]","v":{"v":0,"d":"kr. 0"}},{"$f":"Table_Transportation[[#Totals],[Faktiske omkostninger]]","v":{"v":0,"d":"kr. 0"}}]
[null,"Total",{"$f":"SUM(C6:C15)","v":{"v":1,"d":"100%"}},{"$f":"SUM(D6:D15)","v":{"v":20000,"d":"kr. 20,000"}},{"v":0,"d":"kr. 0"},{"v":0,"d":"kr. 0"}]
[]
[null,"BIDRAG"]
[null,"Kilde til midler","Bidrag"]
[null,"Opsparing",{"v":10000,"d":"kr. 10,000"}]
[null,"Mor og far til partner 1",{"v":4000,"d":"kr. 4,000"}]
[null,"Bedsteforældre til partner 1",{"v":2000,"d":"kr. 2,000"}]
[null,"Mor og far til partner 2",{"v":4000,"d":"kr. 4,000"}]
[null,"Bedsteforældre til partner 2",{"v":4000,"d":"kr. 4,000"}]
[null,"Andre bidrag",{"v":2000,"d":"kr. 2,000"}]
[null,"Total",{"$f":"SUBTOTAL(109,Table_Contributions[Bidrag])","v":{"v":26000,"d":"kr. 26,000"}}]
[]
[null,{"$f":"IF(Table_Contributions[[#Totals],[Bidrag]]<Samlet_Bryllupsbudget,\"Differencen, der skal betales\",\"Ekstra midler til rådighed\")","v":"Ekstra midler til rådighed"},{"$f":"IF(Table_Contributions[[#Totals],[Bidrag]]<Samlet_Bryllupsbudget,Samlet_Bryllupsbudget-Table_Contributions[[#Totals],[Bidrag]],Table_Contributions[[#Totals],[Bidrag]]-Samlet_Bryllupsbudget)","v":{"v":6000,"d":"kr. 6,000"}}]

{"sheet":"Budgetoplysninger","index":1,"n_rows":80,"n_cols":4,"rows_kept":80}
[]
[null,"RECEPTION","Anslåede omkostninger","Faktiske omkostninger"]
[null,"Sted og leje"]
[null,"Mad og service"]
[null,"Drikkevarer"]
[null,"Kage"]
[null,"Diverse udgifter"]
[null,"Total",{"$f":"SUBTOTAL(109,Table_Reception[Anslåede omkostninger])","v":{"v":0,"d":"kr. 0.00"}},{"$f":"SUBTOTAL(109,Table_Reception[Faktiske omkostninger])","v":{"v":0,"d":"kr. 0.00"}}]
[]
[null,"PÅKLÆDNING","Anslåede omkostninger","Faktiske omkostninger"]
[null,"Smoking, jakkesæt og/eller kjoler"]
[null,"Ændringer"]
[null,"Hovedpynt og slør"]
[null,"Tilbehør"]
[null,"Hår og makeup"]
[null,"Diverse udgifter"]
[null,"Total",{"$f":"SUBTOTAL(109,Table_Attire[Anslåede omkostninger])","v":{"v":0,"d":"kr. 0.00"}},{"$f":"SUBTOTAL(109,Table_Attire[Faktiske omkostninger])","v":{"v":0,"d":"kr. 0.00"}}]
[]
[null,"BLOMSTER OG PYNT","Anslåede omkostninger","Faktiske omkostninger"]
[null,"Blomster til ceremonien"]
[null,"Blomster og kurv til blomsterpige"]
[null,"Ringpude"]
[null,"Blomsterbuketter"]
[null,"Knaphulsbuketter"]
[null,"Pyntebuketter"]
[null,"Receptionsdekorationer"]
[null,"Belysning"]
[null,"Diverse udgifter"]
[null,"Total",{"$f":"SUBTOTAL(109,Table_FlowersAndDecorations[Anslåede omkostninger])","v":{"v":0,"d":"kr. 0.00"}},{"$f":"SUBTOTAL(109,Table_FlowersAndDecorations[Faktiske omkostninger])","v":{"v":0,"d":"kr. 0.00"}}]
[]
[null,"MUSIK","Anslåede omkostninger","Faktiske omkostninger"]
[null,"Musikere til ceremoni"]
[null,"Musikere til cocktail-hour"]
[null,"Band, DJ eller underholdning til reception"]
[null,"Leje af anlæg eller dansegulv"]
[null,"Diverse udgifter"]
[null,"Total",{"$f":"SUBTOTAL(109,Table_Music[Anslåede omkostninger])","v":{"v":0,"d":"kr. 0.00"}},{"$f":"SUBTOTAL(109,Table_Music[Faktiske omkostninger])","v":{"v":0,"d":"kr. 0.00"}}]
[]
[null,"FOTOS OG VIDEOER","Anslåede omkostninger","Faktiske omkostninger"]
[null,"Fotografering"]
[null,"Videooptagelse"]
[null,"Flere kopier og album"]
[null,"Diverse udgifter"]
[null,"Total",{"$f":"SUBTOTAL(109,Table_PhotographsAndVideo[Anslåede omkostninger])","v":{"v":0,"d":"kr. 0.00"}},{"$f":"SUBTOTAL(109,Table_PhotographsAndVideo[Faktiske omkostninger])","v":{"v":0,"d":"kr. 0.00"}}]
[]
[null,"GAVER TIL GÆSTER","Anslåede omkostninger","Faktiske omkostninger"]
[null,"Velkomstgaver"]
[null,"Gaver til gæster"]
[null,"Diverse udgifter"]
[null,"Total",{"$f":"SUBTOTAL(109,Table_FavorsAndGifts[Anslåede omkostninger])","v":{"v":0,"d":"kr. 0.00"}},{"$f":"SUBTOTAL(109,Table_FavorsAndGifts[Faktiske omkostninger])","v":{"v":0,"d":"kr. 0.00"}}]
[]
[null,"CEREMONI","Anslåede omkostninger","Faktiske omkostninger"]
[null,"Gebyr til stedet"]
[null,"Gebyr til person, der udfører vielse, eller kirkedonation"]
[null,"Diverse udgifter"]
[null,"Total",{"$f":"SUBTOTAL(109,Table_Ceremony[Anslåede omkostninger])","v":{"v":0,"d":"kr. 0.00"}},{"$f":"SUBTOTAL(109,Table_Ceremony[Faktiske omkostninger])","v":{"v":0,"d":"kr. 0.00"}}]
[]
[null,"TRYKSAGER","Anslåede omkostninger","Faktiske omkostninger"]
[null,"Save the date-kort"]
[null,"Invitationer og s.u."]
[null,"Programmer"]
[null,"Bordplan og bordkort"]
[null,"Menukort"]
[null,"Takkekort"]
[null,"Porto"]
[null,"Diverse udgifter"]
[null,"Total",{"$f":"SUBTOTAL(109,Table_Stationery[Anslåede omkostninger])","v":{"v":0,"d":"kr. 0.00"}},{"$f":"SUBTOTAL(109,Table_Stationery[Faktiske omkostninger])","v":{"v":0,"d":"kr. 0.00"}}]
[]
[null,"VIELSESRINGE","Anslåede omkostninger","Faktiske omkostninger"]
[null,"Vielsesringe"]
[null,"Tilbehør til ringe"]
[null,"Total",{"$f":"SUBTOTAL(109,Table_WeddingRings[Anslåede omkostninger])","v":{"v":0,"d":"kr. 0.00"}},{"$f":"SUBTOTAL(109,Table_WeddingRings[Faktiske omkostninger])","v":{"v":0,"d":"kr. 0.00"}}]
[]
[null,"TRANSPORT","Anslåede omkostninger","Faktiske omkostninger"]
[null,"Leje af hovedbil"]
[null,"Leje af gæstebiler"]
[null,"Transport til udenbysgæster"]
[null,"Valet-parkering"]
[null,"Diverse udgifter"]
[null,"Total",{"$f":"SUBTOTAL(109,Table_Transportation[Anslåede omkostninger])","v":{"v":0,"d":"kr. 0.00"}},{"$f":"SUBTOTAL(109,Table_Transportation[Faktiske omkostninger])","v":{"v":0,"d":"kr. 0.00"}}]